bitfinex/quotes_ETHUSD_20241212
["timestamp","ask_amount","ask_price","bid_price","bid_amount"]
[1734045332701,1.02079658,3877.7,3876.9,0.60442501]
[1734045333153,0.58223746,3877.6,3876.7,2.48878985]
[1734045333443,0.55,3877.6,3876.7,2.48878985]
[1734045333715,0.58224085,3877.6,3876.3,7.07637133]
[1734045333869,0.58224085,3877.6,3876.4,0.29974274]
[1734045334074,2.57917,3877.3,3876.3,2.48878985]
[1734045334256,1.0096,3877.1,3876.3,2.48878985]
[1734045335282,1.0096,3877.1,3876.2,2.57984]
[1734045335482,1.0096,3877.1,3876.2,5.06862985]
[1734045335658,0.03224343,3877.0,3876.2,5.06862985]
[1734045335978,0.03224343,3877.0,3876.2,3.26658125]
[1734045336230,0.03224343,3877.0,3875.9,5.2892941]
[1734045336231,1.0419,3876.7,3875.7,1.06723449]
[1734045336397,3.0,3877.7,3875.4,3.55602434]
[1734045336398,1.0419,3876.3,3875.4,3.55602434]
[1734045336691,0.03726821,3876.2,3875.4,2.9703274]
[1734045336839,1.0419,3876.3,3875.5,0.66179619]
[1734045337038,0.03726821,3876.2,3875.5,0.66179619]
[1734045337358,1.0419,3876.3,3875.5,0.66179619]
[1734045337535,1.0419,3876.3,3875.5,3.66179619]
[1734045337883,0.03726821,3876.2,3875.5,3.66179619]
[1734045338092,1.0419,3876.3,3875.5,6.24209619]
[1734045339689,1.0419,3876.3,3875.9,2.58003]
[1734045339897,1.0419,3876.3,3876.0,2.57995]
[1734045340598,1.0419,3876.3,3875.9,2.58004]
[1734045340757,1.0475,3877.4,3876.2,2.48878985]
[1734045340962,1.0475,3877.4,3876.7,2.57949]
[1734045341145,1.0475,3877.4,3877.0,2.5793]
[1734045341146,0.03689386,3877.3,3877.0,2.5793]
[1734045341646,1.0475,3877.4,3877.0,2.74561705]
[1734045341877,0.9941,3878.3,3877.1,2.57924]
[1734045342198,0.06918904,3878.2,3877.3,2.57909]
[1734045342559,0.03695236,3878.2,3877.3,2.57909]
[1734045342877,0.03223634,3878.1,3877.3,2.57909]
[1734045343073,0.03695236,3878.0,3877.3,2.57909]
[1734045343376,0.03223634,3878.1,3877.3,2.57909]
[1734045343697,0.03695236,3878.2,3877.3,3.08586799]
[1734045343945,0.03695236,3878.2,3877.9,2.5787]
[1734045344239,0.03695236,3878.2,3877.6,2.57891]
[1734045344388,0.03695236,3878.2,3877.8,2.57873]
[1734045344836,0.03695236,3878.2,3877.8,5.06751985]
[1734045345037,0.03695236,3878.2,3877.8,2.48878985]
[1734045346032,0.03695236,3878.2,3877.8,5.06749985]
[1734045346249,0.03695236,3878.2,3877.8,5.31637884]
[1734045347301,0.03695236,3878.2,3877.8,2.73766884]
[1734045347560,0.03695236,3878.2,3877.8,2.48878985]
[1734045348242,0.03695236,3878.2,3878.1,2.57858]
[1734045349118,0.03695236,3878.2,3877.8,2.48878985]
[1734045349292,1.03555236,3878.2,3877.8,2.48878985]
[1734045349726,0.0384608,3878.1,3877.8,2.48878985]
[1734045349930,1.03555236,3878.2,3877.8,2.48878985]
[1734045350436,0.0384608,3878.1,3877.8,2.48878985]
[1734045350733,1.03555236,3878.2,3877.8,2.99555283]
[1734045350939,1.03555236,3878.2,3877.8,2.48878985]
[1734045351433,0.03839067,3878.1,3877.8,2.48878985]
[1734045352243,1.03555236,3878.2,3877.8,2.48878985]
[1734045353511,0.03839067,3878.1,3877.8,2.48878985]
[1734045353706,1.03555236,3878.2,3877.8,2.48878985]
[1734045353925,0.03839067,3878.1,3877.8,2.48878985]
[1734045354141,1.03555236,3878.2,3877.8,2.48878985]
[1734045354614,0.03839067,3878.1,3877.8,5.06754985]
[1734045354821,1.03555236,3878.2,3877.9,0.50675498]
[1734045355997,1.6393,3878.0,3877.0,2.48878985]
[1734045356339,1.0893,3877.8,3877.0,2.48878985]
[1734045356554,0.03223858,3877.7,3877.0,2.48878985]
[1734045356733,0.03839067,3877.6,3877.0,2.48878985]
[1734045357805,0.03223837,3877.7,3877.0,2.48878985]
[1734045358048,0.03802242,3877.5,3877.0,2.48878985]
[1734045358345,0.03223837,3877.7,3877.0,2.48878985]
[1734045358494,0.03772429,3877.6,3877.0,2.48878985]
[1734045359828,1.0893,3877.8,3877.1,2.57921]
[1734045360028,1.0893,3877.8,3877.4,2.48878985]
[1734045360258,0.03773013,3877.7,3877.4,2.48878985]
[1734045361633,1.0893,3878.1,3877.4,2.48878985]
[1734045362282,0.03773013,3878.0,3877.4,2.48878985]
[1734045362641,0.03773013,3878.0,3877.8,2.48878985]
[1734045362844,1.0893,3878.1,3877.8,2.48878985]
[1734045363263,0.03784121,3878.0,3877.8,2.48878985]
[1734045363847,0.9877,3878.4,3877.8,2.48878985]
[1734045364149,0.03223272,3878.3,3877.4,8.06776985]
[1734045364342,0.9877,3878.4,3877.4,5.48878985]
[1734045364590,0.9877,3878.4,3877.6,2.57889]
[1734045364946,0.03811594,3878.1,3877.6,2.57889]
[1734045365159,0.9877,3878.4,3877.6,2.57889]
[1734045365369,0.03806919,3878.1,3877.4,2.48878985]
[1734045365653,0.03806919,3878.1,3877.7,2.57884]
[1734045365865,0.9877,3878.4,3877.7,2.57884]
[1734045366058,0.9877,3878.4,3877.8,2.48878985]
[1734045366418,0.9877,3878.4,3877.9,2.57871]
[1734045366681,0.9877,3878.4,3877.8,2.48878985]
[1734045367194,0.0322327,3878.3,3877.4,2.48878985]
[1734045367480,1.0339,3878.1,3877.2,2.57911]
[1734045367687,1.0339,3877.8,3877.0,2.48878985]
[1734045367873,0.03223886,3877.7,3877.0,2.48878985]
[1734045368571,0.03792891,3877.6,3877.0,2.48878985]
[1734045368902,0.03792891,3877.6,3877.1,2.57924]
[1734045369059,0.03792891,3877.6,3877.0,2.48878985]
[1734045369260,1.0339,3877.8,3877.2,2.57916]
[1734045369669,1.0339,3877.8,3877.0,2.48878985]
[1734045369670,1.06613924,3877.8,3877.0,2.48878985]
[1734045369976,0.03792891,3877.7,3877.0,2.48878985]
[1734045370196,1.0339,3877.8,3877.4,5.06780985]
[1734045370594,1.0339,3877.8,3877.4,2.99557084]
[1734045370910,1.0339,3877.8,3877.5,2.57897]
[1734045371280,1.0339,3877.8,3877.4,2.48878985]
[1734045371653,0.03781199,3877.7,3877.4,2.48878985]
[1734045372005,1.0488,3878.1,3877.6,2.57891]
[1734045372212,0.03781199,3878.0,3877.6,2.57891]
[1734045372768,1.0488,3878.1,3877.8,2.48878985]
[1734045373068,0.03695236,3878.2,3878.1,2.57858]
[1734045376993,2.36e-06,3878.2,3878.1,6.66398]
[1734045377304,1.0778,3879.4,3879.0,2.57797]
[1734045377611,0.03586698,3879.3,3879.0,5.06675985]
[1734045378024,1.0778,3879.4,3879.0,2.48878985]
[1734045378540,1.0778,3879.4,3878.2,5.57847]
[1734045378541,0.068599,3879.3,3878.5,2.48878985]
[1734045378744,0.068599,3879.3,3878.2,3.0]
[1734045378745,0.9923,3879.2,3878.2,3.0]
[1734045378947,0.58222623,3879.1,3878.1,2.57853]
[1734045379166,0.58222623,3879.1,3878.2,2.5785]
[1734045379167,0.0322293,3879.0,3878.2,2.5785]
[1734045379473,0.03681944,3878.9,3878.2,2.5785]
[1734045379808,0.03681944,3878.9,3878.2,2.57847]
[1734045380046,0.03681944,3878.9,3878.3,2.57842]
[1734045380421,0.55,3879.1,3878.3,2.57842]
[1734045380620,0.03666757,3878.8,3878.0,2.48878985]
[1734045380839,1.0135,3878.7,3878.1,5.57858]
[1734045381014,1.0135,3878.7,3878.1,2.57858]
[1734045381219,0.03649814,3878.6,3878.1,2.57858]
[1734045381770,0.03222799,3878.6,3878.0,2.48878985]
[1734045381970,1.0135,3878.7,3878.0,2.48878985]
[1734045382141,0.03649814,3878.6,3878.0,2.48878985]
[1734045383379,0.03649814,3878.6,3878.2,2.57847]
[1734045383673,1.0135,3878.7,3878.2,2.57847]
[1734045384087,0.03649814,3878.6,3878.2,2.57847]
[1734045384403,1.0135,3878.7,3878.2,2.57847]
[1734045384612,0.03649814,3878.6,3878.2,2.57847]
[1734045384805,0.03649814,3878.6,3878.5,2.57831]
[1734045384991,1.0813,3879.0,3878.5,2.57831]
[1734045385170,0.03646309,3878.9,3878.5,2.57831]
[1734045385518,1.0813,3879.0,3878.5,2.57831]
[1734045385809,0.03646309,3878.9,3878.5,2.57831]
[1734045386191,0.03646309,3878.9,3878.4,2.48878985]
[1734045386509,0.03646309,3878.9,3878.4,5.06714985]
[1734045386810,1.0449,3879.4,3878.8,2.48878985]
[1734045387313,0.03651567,3879.3,3878.8,2.48878985]
[1734045387808,1.0449,3879.4,3878.8,2.48878985]
[1734045388903,1.0449,3879.4,3878.9,2.57803]
[1734045389427,2.57705,3880.5,3878.9,2.57803]
[1734045389428,0.03681366,3879.3,3879.2,2.48878985]
[1734045389609,0.03681366,3879.3,3879.2,9.08013985]
[1734045389932,1.61969839,3881.0,3879.2,9.08013985]
[1734045389933,1.0735,3880.4,3879.2,6.50228985]
[1734045390140,1.0735,3880.4,3879.6,2.48878985]
[1734045390711,0.03681366,3880.3,3879.6,2.48878985]
[1734045390927,0.03681366,3880.3,3879.6,5.06635985]
[1734045391539,0.03681366,3880.3,3879.8,2.57744]
[1734045391740,0.03681366,3880.3,3879.6,2.99542584]
[1734045391741,0.03681366,3880.3,3880.0,2.48878985]
[1734045391904,1.6036,3881.1,3880.0,2.48878985]
[1734045392245,1.6036,3880.9,3880.0,2.48878985]
[1734045392806,0.03681366,3880.8,3880.1,2.57724]
[1734045393844,0.06902653,3880.8,3880.0,2.48878985]
[1734045394139,0.49394918,3880.8,3880.0,2.48878985]
[1734045395158,0.55,3880.3,3879.2,2.48878985]
[1734045395448,3.62982928,3880.2,3879.0,3.66158]
[1734045395607,0.41798293,3880.1,3879.0,6.15036985]
[1734045395808,0.03221936,3880.0,3879.0,6.15036985]
[1734045396222,0.03681366,3879.9,3879.0,6.15036985]
[1734045396510,1.0401,3879.8,3879.0,2.48878985]
[1734045396663,1.0401,3879.8,3879.0,5.31558884]
[1734045397025,0.069035,3879.7,3879.0,5.31558884]
[1734045397225,0.069035,3879.7,3879.0,5.06670985]
[1734045397440,0.03681366,3879.7,3879.0,5.06670985]
[1734045397623,1.0401,3879.8,3879.2,2.57784]
[1734045397953,1.0401,3879.8,3879.4,2.48878985]
[1734045398157,0.03681366,3879.7,3879.4,2.48878985]
[1734045398536,1.0401,3879.8,3879.4,2.48878985]
[1734045398743,1.0401,3879.8,3878.9,2.578]
[1734045398971,0.06990886,3879.7,3879.0,2.48878985]
[1734045399459,0.06991161,3879.7,3879.0,2.48878985]
[1734045399621,0.40643637,3879.7,3879.0,2.48878985]
[1734045400035,0.03768821,3879.7,3879.0,5.06670985]
[1734045400466,1.0401,3879.8,3879.0,5.06670985]
[1734045400676,0.03771741,3879.6,3879.0,5.06670985]
[1734045400881,1.07232098,3879.8,3879.0,2.48878985]
[1734045401040,0.03771741,3879.5,3879.0,2.48878985]
[1734045401238,1.07232098,3879.8,3879.0,2.48878985]
[1734045401536,0.03762981,3879.4,3879.0,2.48878985]
[1734045401798,1.0401,3879.8,3879.0,2.48878985]
[1734045401995,0.03762981,3879.3,3879.0,5.06675985]
[1734045402140,0.55,3879.6,3878.7,3.0]
[1734045402345,1.0868,3879.4,3878.7,3.0]
[1734045402697,1.0868,3879.4,3878.6,2.48878985]
[1734045402698,0.03765317,3879.3,3878.6,2.48878985]
[1734045403253,0.03765317,3879.3,3878.6,5.48878985]
[1734045404305,0.982,3879.2,3878.2,5.06723985]
[1734045404513,3.01786326,3879.3,3877.8,0.21076217]
[1734045404514,0.982,3879.0,3877.9,2.57864]
[1734045404670,0.9956,3878.8,3877.8,2.48878985]
[1734045404870,0.9956,3878.8,3878.2,2.48878985]
[1734045405106,0.9956,3878.8,3878.3,2.57844]
[1734045405470,0.03747795,3878.7,3878.3,2.57844]
[1734045405813,0.9956,3878.8,3878.3,2.57844]
[1734045406105,0.03747795,3878.7,3878.4,2.57837]
[1734045406308,0.03747795,3878.7,3878.2,2.73766884]
[1734045406606,0.9956,3878.8,3878.2,5.31616884]
[1734045406980,0.03715665,3878.7,3878.2,5.31616884]
[1734045407180,0.9956,3878.8,3878.2,5.31616884]
[1734045407575,0.03715665,3878.7,3878.2,5.31616884]
[1734045407783,0.03715665,3878.7,3878.2,5.06728985]
[1734045407967,0.9956,3878.8,3878.2,2.48878985]
[1734045408180,0.9956,3878.8,3878.4,2.57836]
[1734045408376,0.9956,3878.8,3878.3,2.57843]
[1734045409464,0.036631,3878.7,3878.3,2.57843]
[1734045409662,0.9956,3878.8,3878.3,2.57843]
[1734045410121,0.9956,3878.8,3878.2,2.48878985]
[1734045410269,0.9956,3878.8,3878.4,2.57833]
[1734045410702,0.9956,3878.8,3878.5,2.5783]
[1734045411378,1.0038,3879.3,3878.5,2.48878985]
[1734045411582,0.03666605,3879.2,3878.5,2.48878985]
[1734045411800,1.0038,3879.3,3878.7,2.57815]
[1734045411982,0.03666605,3879.2,3878.7,2.57815]
[1734045412315,1.0038,3879.3,3878.7,2.57815]
[1734045412823,0.03666605,3879.2,3878.7,2.57815]
[1734045413113,1.0038,3879.3,3878.7,2.57815]
[1734045413484,0.03666605,3879.2,3878.7,2.57815]
[1734045413696,0.03666605,3879.2,3878.7,0.61391398]
[1734045413995,1.0038,3879.3,3878.7,0.61391398]
[1734045414221,3.08427044,3880.3,3878.9,2.48878985]
[1734045414522,1.0332,3879.9,3879.0,2.57792]
[1734045414682,1.0332,3879.9,3878.9,2.48878985]
[1734045415012,0.03684714,3879.8,3879.5,2.57761]
[1734045415176,1.0332,3879.9,3879.5,2.57761]
[1734045415420,0.03684714,3879.8,3879.5,2.57761]
[1734045415626,1.0737,3880.9,3879.3,2.48878985]
[1734045415805,4.88356403,3880.8,3879.7,2.57751]
[1734045416156,1.88356403,3880.8,3879.7,2.57751]
[1734045416320,1.88356403,3880.8,3879.3,2.48878985]
[1734045416511,1.11054714,3880.8,3879.8,1.0475]
[1734045417256,1.0737,3880.6,3879.7,2.48878985]
[1734045417454,0.03221432,3880.5,3879.7,2.48878985]
[1734045417659,0.06906146,3880.5,3879.7,5.06629985]
[1734045417801,0.06906146,3880.5,3879.8,2.57745]
[1734045417802,0.03684714,3880.5,3879.8,2.57745]
[1734045418005,0.03684714,3880.5,3879.9,2.57737]
[1734045418624,0.03684714,3880.5,3879.7,5.06628985]
[1734045418807,0.06906143,3880.5,3879.7,5.06628985]
[1734045419249,0.03684714,3880.5,3879.7,5.06628985]
[1734045419455,0.03684714,3880.5,3879.7,5.97766884]
[1734045419658,0.03684714,3880.5,3879.8,2.57743]
[1734045419869,0.03684714,3880.5,3879.7,3.40016884]
[1734045420025,1.1059143,3880.6,3879.7,3.40016884]
[1734045420207,0.58755968,3880.5,3879.3,5.06650985]
[1734045420412,0.55,3880.2,3879.3,5.06650985]
[1734045420624,0.03729111,3880.1,3879.3,5.06650985]
[1734045421664,0.9919,3880.0,3879.0,2.57793]
[1734045421859,0.03221953,3879.9,3879.0,2.57793]
[1734045422061,0.03719185,3879.9,3878.9,2.48878985]
[1734045422260,0.03719185,3879.9,3879.2,2.57784]
[1734045422464,0.06941138,3879.9,3879.2,2.57784]
[1734045423610,0.03719185,3879.9,3879.2,2.57784]
[1734045423849,0.03719185,3879.9,3879.3,2.57778]
[1734045424667,0.03719185,3879.9,3879.2,0.50666298]
[1734045424827,0.03719185,3879.9,3878.9,2.48878985]
[1734045424828,0.03221953,3879.8,3878.9,2.48878985]
[1734045425030,0.55,3879.6,3878.9,2.48878985]
[1734045425233,0.55,3879.6,3878.5,5.48878985]
[1734045425234,1.0556,3879.4,3878.5,5.48878985]
[1734045425446,1.0556,3879.4,3878.6,3.78032368]
[1734045425447,0.03701667,3879.3,3878.6,3.78032368]
[1734045425971,0.03701667,3879.3,3878.7,2.57817]
[1734045426132,0.06924026,3879.3,3878.5,2.48878985]
[1734045426338,0.06924026,3879.3,3878.1,1.06886792]
[1734045426339,1.0556,3879.2,3878.1,2.48878985]
[1734045426622,1.0556,3879.2,3878.0,2.06556792]
[1734045426623,1.0556,3879.0,3878.0,2.48878985]
[1734045426788,1.0556,3879.0,3878.4,2.48878985]
[1734045427437,0.06905093,3878.9,3878.4,2.48878985]
[1734045427634,1.0556,3879.0,3878.4,2.48878985]
[1734045429276,0.03546258,3878.9,3878.2,2.5785]
[1734045429481,0.03546258,3878.9,3878.2,3.19211578]
[1734045430033,1.0556,3878.8,3878.2,3.19211578]
[1734045430237,1.0556,3878.8,3878.0,2.48878985]
[1734045430476,0.06767345,3878.7,3877.8,3.0]
[1734045430791,0.55,3878.5,3877.6,2.48878985]
[1734045430996,1.0878335,3878.4,3877.6,2.48878985]
[1734045431168,0.55,3878.1,3877.2,2.57915]
[1734045431486,0.55,3878.1,3877.0,1.06886792]
[1734045431487,0.03541584,3878.0,3877.0,5.06808985]
[1734045431647,0.55,3877.8,3877.1,0.26697197]
[1734045431985,0.06739827,3877.7,3876.7,5.06823985]
[1734045432293,1.06,3877.6,3876.7,2.48878985]
[1734045432432,1.06,3877.6,3876.8,2.82831899]
[1734045432637,0.03481387,3877.5,3877.0,2.5793]
[1734045432972,0.03481387,3877.5,3877.2,2.57918]
[1734045433334,1.06,3877.9,3877.2,2.57918]
[1734045433783,0.03481387,3877.8,3877.2,2.57918]
[1734045433980,0.03481387,3877.8,3877.2,3.18683699]
[1734045434531,1.06,3877.9,3877.2,3.18683699]
[1734045434900,0.03481387,3877.8,3877.2,0.60765699]
[1734045435231,1.06,3877.9,3877.2,2.57918]
[1734045435538,0.03482556,3877.8,3877.2,2.57918]
[1734045436081,0.03482556,3877.8,3877.0,2.48878985]
[1734045436317,1.0814,3877.7,3876.6,2.48878985]
[1734045436538,1.0814,3877.5,3876.6,2.48878985]
[1734045436835,0.06703108,3877.4,3876.6,2.48878985]
[1734045437510,0.55,3877.3,3876.6,2.48878985]
[1734045437836,1.0814,3877.5,3876.6,5.06835985]
[1734045438016,0.03479049,3877.4,3876.6,3.00875343]
[1734045438194,1.0814,3877.5,3876.8,2.57944]
[1734045438509,0.03373252,3877.4,3876.8,2.57944]
[1734045439151,1.0299,3877.3,3876.2,2.48878985]
[1734045439285,1.0299,3877.3,3876.3,3.91126199]
[1734045440547,0.03369159,3877.2,3876.8,2.57943]
[1734045440886,1.0299,3877.3,3876.8,2.57943]
[1734045441236,0.03356879,3877.2,3876.8,2.57943]
[1734045441539,1.06213834,3877.2,3876.1,2.57989]
[1734045441890,0.03363312,3877.1,3876.2,2.57982]
[1734045442088,1.06213834,3877.2,3876.2,2.57982]
[1734045442335,1.06213834,3877.2,3875.9,2.6153992]
[1734045442336,1.0299,3876.8,3875.2,1.06886792]
[1734045442530,1.0299,3876.8,3875.0,1.86988883]
[1734045442531,0.55,3876.5,3875.5,2.58029]
[1734045442741,1.0299,3876.4,3875.5,2.58029]
[1734045443034,1.0299,3876.4,3875.7,2.48878985]
[1734045443035,1.06337522,3876.4,3875.7,2.48878985]
[1734045443394,1.0299,3876.4,3876.0,2.57995]
[1734045443592,1.0299,3876.4,3876.1,2.48878985]
[1734045443788,1.0299,3876.4,3876.1,5.31755884]
[1734045443987,1.0299,3876.4,3876.1,5.06867985]
[1734045444610,1.0299,3876.4,3876.1,2.57989]
[1734045444808,1.0299,3876.4,3875.7,2.48878985]
[1734045445112,1.0299,3876.4,3876.1,2.5799]
[1734045445934,1.0299,3876.4,3875.7,2.48878985]
[1734045446237,1.0299,3876.4,3876.0,2.57993]
[1734045446394,1.0299,3876.4,3875.7,5.06891985]
[1734045446824,1.0299,3876.4,3875.7,2.48878985]
[1734045447034,0.03320032,3876.3,3875.8,2.5801]
[1734045447217,1.0299,3876.4,3875.8,2.5801]
[1734045447419,1.0299,3876.4,3875.9,2.58003]
[1734045447742,0.03320032,3876.3,3875.9,2.58003]
[1734045448094,1.0299,3876.4,3875.9,2.58003]
[1734045448500,0.03321201,3876.3,3875.7,2.48878985]
[1734045448942,1.0299,3876.4,3875.7,5.06895985]
[1734045449123,0.03321201,3876.2,3875.8,2.58009]
[1734045449357,1.0299,3876.4,3875.8,2.58009]
[1734045449941,0.03259207,3876.3,3875.8,0.50688799]
[1734045450159,0.03259207,3876.3,3876.2,2.57984]
[1734045450469,1.0209,3876.7,3876.3,2.57973]
[1734045450654,1.0209,3876.7,3876.4,0.257973]
[1734045450851,1.0209,3876.7,3875.7,2.61414603]
[1734045451028,1.0209,3876.7,3876.4,2.5797]
[1734045452232,1.0209,3876.7,3875.7,2.48878985]
[1734045452459,1.0209,3876.7,3876.0,2.57993]
[1734045452774,1.0209,3876.7,3875.7,5.48878985]
[1734045452929,2.57892,3877.6,3875.5,2.58029]
[1734045452930,0.55,3876.4,3875.5,2.58029]
[1734045453131,0.55,3876.4,3875.2,2.58046]
[1734045453132,1.0456,3876.2,3875.2,2.58046]
[1734045453323,1.24063728,3876.1,3875.2,2.58046]
[1734045453531,1.11053211,3876.1,3875.2,2.58046]
[1734045453761,1.07827981,3876.1,3875.0,2.48878985]
[1734045454079,1.07827981,3876.1,3875.6,2.58019]
[1734045454366,1.07827981,3876.1,3875.6,2.58018]
[1734045454555,1.07827981,3876.1,3875.4,2.48878985]
[1734045454728,1.0456,3876.1,3875.7,2.58013]
[1734045455342,1.0456,3876.1,3875.0,3.0]
[1734045455343,0.03225015,3876.0,3875.1,2.58053]
[1734045455558,1.0255,3875.9,3875.2,2.58049]
[1734045455764,1.05770005,3875.9,3875.2,0.52920081]
[1734045455965,1.05770005,3875.9,3875.4,2.48878985]
[1734045456137,1.0255,3876.3,3875.5,2.58031]
[1734045456340,1.0255,3876.3,3875.8,2.48878985]
[1734045456669,1.0255,3876.3,3876.2,2.57984]
[1734045457219,1.0255,3876.7,3876.5,2.57958]
[1734045458269,1.0255,3876.7,3876.3,2.57977]
[1734045458498,1.0255,3876.7,3876.4,2.57971]
[1734045459065,1.0255,3876.7,3876.5,2.57964]
[1734045459814,1.0255,3876.7,3876.0,0.9985]
[1734045460014,1.0255,3876.7,3876.4,2.5797]
[1734045460771,0.55,3877.4,3876.3,2.57977]
[1734045461028,0.55,3877.4,3876.1,0.60672799]
[1734045461029,1.0801,3877.2,3876.4,0.82551278]
[1734045461233,0.03224209,3877.1,3876.4,2.57967]
[1734045461392,1.0801,3877.0,3876.4,2.57967]
[1734045461722,0.55,3877.4,3876.1,2.5799]
[1734045461723,1.0801,3876.8,3876.1,2.5799]
[1734045461928,1.0801,3876.8,3876.0,2.57997]
[1734045462122,1.0801,3876.8,3876.2,2.5798]
[1734045462419,0.03274998,3876.7,3876.2,2.5798]
[1734045462775,1.0801,3876.8,3876.2,2.5798]
[1734045463212,0.03274998,3876.7,3876.2,2.5798]
[1734045463518,1.0801,3876.8,3876.2,2.5798]
[1734045463927,0.03274998,3876.7,3876.2,2.5798]
[1734045464766,0.03274998,3876.7,3875.9,2.48878985]
[1734045464915,0.03274998,3876.7,3876.0,0.61073998]
[1734045465119,1.0801,3876.8,3876.5,2.57962]
[1734045465346,1.0801,3876.8,3876.1,2.57991]
[1734045465569,1.0801,3876.8,3876.2,2.57979]
[1734045465865,0.03176664,3876.7,3876.2,2.57979]
[1734045466064,1.0801,3876.8,3876.0,0.61073998]
[1734045466233,0.03176664,3876.7,3876.3,2.57973]
[1734045466562,1.0801,3876.8,3876.4,2.57968]
[1734045466761,1.0801,3876.8,3876.1,0.56795098]
[1734045466762,1.0801,3876.8,3876.6,2.57951]
[1734045466934,0.03176664,3876.7,3876.6,2.57951]
[1734045467133,1.0801,3876.8,3876.1,0.56795098]
[1734045467449,1.0801,3876.8,3876.4,2.57969]
[1734045467815,0.03180174,3876.7,3876.4,2.57969]
[1734045468019,1.0801,3876.8,3875.9,2.48878985]
[1734045468220,1.0801,3876.8,3876.5,2.57964]
[1734045469168,1.0801,3876.8,3876.2,2.57978]
[1734045469598,1.0801,3876.8,3876.3,2.57977]
[1734045469898,0.06407458,3876.7,3876.1,2.5799]
[1734045470070,0.06407458,3876.7,3875.9,2.48878985]
[1734045470231,0.06407458,3876.7,3875.9,5.06881985]
[1734045470429,0.06407458,3876.7,3875.9,2.58003]
[1734045470630,1.041,3876.6,3875.7,2.58017]
[1734045470830,0.03202401,3876.5,3875.7,2.58017]
[1734045471069,0.03202401,3876.5,3875.8,2.58008]
[1734045471375,1.041,3876.6,3875.5,5.48878985]
[1734045471550,1.041,3876.6,3876.1,2.57986]
[1734045472409,1.041,3876.6,3875.9,2.48878985]
[1734045472410,1.041,3876.6,3876.2,2.57983]
[1734045473296,0.0322454,3876.5,3875.9,2.48878985]
[1734045474010,1.041,3876.6,3875.9,2.58001]
[1734045474384,1.0378965,3876.6,3875.9,2.58001]
[1734045474899,0.03178418,3876.5,3875.6,3.98619259]
[1734045475085,0.03178418,3876.5,3875.7,1.17060204]
[1734045475287,1.0378965,3876.6,3876.2,2.57983]
[1734045475653,1.0378965,3876.6,3876.0,2.57997]
[1734045477037,1.0378965,3876.6,3875.7,1.17060204]
[1734045477181,0.55,3876.4,3875.6,1.06886792]
[1734045477386,2.57929,3877.1,3875.1,2.68570373]
[1734045477387,0.55,3876.1,3875.3,1.06886792]
[1734045477628,1.0037,3876.0,3875.2,1.06886792]
[1734045477811,0.0322528,3875.9,3875.2,1.06886792]
[1734045478128,0.03179588,3875.8,3875.2,2.5805]
[1734045478640,1.0037,3876.0,3875.2,2.5805]
[1734045479130,0.03079255,3875.9,3875.2,2.5805]
[1734045479476,0.03079255,3875.9,3875.1,1.06886792]
[1734045479611,0.03079255,3875.9,3875.5,2.5803]
[1734045480628,0.03079255,3875.9,3875.2,2.58044]
[1734045480811,0.03079255,3875.9,3875.2,1.06886792]
[1734045481014,1.0037,3876.0,3875.3,2.58043]
[1734045481327,1.03595277,3876.0,3875.3,2.58043]
[1734045481526,0.03079255,3875.9,3875.3,2.58043]
[1734045481713,0.03079255,3875.9,3875.2,1.06886792]
[1734045481886,0.03079255,3875.9,3875.0,4.08964159]
[1734045481887,0.03079255,3875.9,3875.4,2.58033]
[1734045482325,0.03079255,3875.9,3875.5,2.58029]
[1734045482528,0.03079255,3875.9,3875.6,2.5802]
[1734045482697,1.0684,3876.3,3875.8,2.48878985]
[1734045482899,1.0684,3876.3,3875.8,2.84455563]
[1734045483812,1.0684,3876.3,3876.0,2.57994]
[1734045484735,1.6184,3877.0,3876.0,2.57994]
[1734045485231,0.03004371,3876.9,3876.0,2.57994]
[1734045485587,1.0381,3876.7,3875.8,1.4246337]
[1734045485791,1.0381,3876.7,3875.8,1.06886792]
[1734045485987,1.0381,3876.7,3875.4,4.62325883]
[1734045485988,0.03009051,3876.6,3875.7,1.06886792]
[1734045486297,0.03009051,3876.6,3875.8,2.5801]
[1734045487222,1.0889475,3876.5,3875.8,2.5801]
[1734045487467,0.030032,3876.4,3875.8,2.5801]
[1734045487678,0.030032,3876.4,3875.8,1.06886792]
[1734045487886,0.030032,3876.4,3875.9,2.58003]
[1734045488669,0.030032,3876.4,3875.8,0.48041886]
[1734045488848,0.030032,3876.4,3875.8,2.5801]
[1734045489048,0.030032,3876.4,3875.8,3.64896792]
[1734045490148,0.030032,3876.4,3875.7,1.06886792]
[1734045490364,0.580032,3876.4,3875.7,1.06886792]
[1734045490534,1.0257,3876.3,3875.6,1.06886792]
[1734045490863,0.580032,3876.4,3875.5,1.06886792]
[1734045490864,1.0257,3876.1,3875.5,1.06886792]
[1734045491169,1.0257,3876.1,3875.4,1.06886792]
[1734045491316,1.0257,3876.1,3875.5,2.58029]
[1734045491522,1.0257,3876.1,3875.4,1.06886792]
[1734045491748,1.0257,3876.1,3875.7,2.58017]
[1734045491917,0.9986,3876.4,3875.9,2.58004]
[1734045492356,0.02988573,3876.3,3875.7,3.64903792]
[1734045492663,0.02988573,3876.3,3875.8,2.58011]
[1734045493421,0.02988573,3876.3,3875.7,1.06886792]
[1734045493666,0.9986,3876.4,3875.9,2.58003]
[1734045493834,0.9986,3876.4,3876.1,2.5799]
[1734045494155,0.9986,3876.4,3875.9,6.64884792]
[1734045494468,0.9986,3876.4,3876.0,0.83733856]
[1734045494882,0.9986,3876.4,3876.0,3.41729856]
[1734045495035,0.9986,3876.4,3876.0,1.90620648]
[1734045495232,0.9986,3877.0,3876.3,2.57977]
[1734045495462,0.9986,3877.0,3876.1,1.06886792]
[1734045495463,0.03002616,3876.9,3876.4,2.57968]
[1734045495846,0.9986,3877.0,3876.4,2.57968]
[1734045496060,0.9986,3877.0,3876.0,2.4381903]
[1734045496061,0.9986,3877.0,3876.2,1.06886792]
[1734045496250,0.9986,3877.0,3876.2,2.57984]
[1734045496459,0.03017828,3876.9,3876.2,2.57984]
[1734045496775,0.03017828,3876.9,3876.3,2.57976]
[1734045497483,0.03017828,3876.9,3876.1,1.06886792]
[1734045497666,0.9986,3877.0,3876.1,1.06886792]